Cogmind - Beta 11 @@@ ROGUE MODE // 2022.03.18 @ 18:23:45 Player: CrossedViper Result: Destroyed by NK-0LA with NK-0LA's Tesla Doomcannon Performance ------------- Evolutions (1) 500 Regions Visited (6) 1200 Robots Destroyed (38) 190 Value Destroyed (1002) 1002 Prototype IDs (25) 500 Alien Tech Used (0) 0 Bonus (76) 76 TOTAL SCORE: 3468 Bonus ------- Aligned with FarCom 300 Friendly Fire -224 Cogmind --------- Core Integrity 0/400 Matter 65/300 Energy 26/100 System Corruption 12% Temperature Cool (0) Movement Core (400) Ox7 Location -8/Mines Parts ------- > --- POWER (1) -------- (None) > --- PROPULSION (3) --- (None) > --- UTILITY (2) ------ Improved Heat Sink Large Storage Unit > --- WEAPON (3) ------- Field Laser > --- INVENTORY (15) --- High-capacity Storage Unit Flak Cannon Peak State ------------ > --- POWER ------------ Cooled Ion Engine > --- PROPULSION ------- Light Treads Light Treads Light Treads > --- UTILITY ---------- Large Storage Unit Long-range Tractor Beam > --- WEAPON ----------- Flak Cannon Flak Cannon Flak Cannon > --- INVENTORY -------- Light Treads Light Treads Light Armor Plating Improved Medium Laser Field Laser Field Laser Field Laser Field Laser Light Assault Rifle Light Assault Rifle Light Assault Rifle Heavy Assault Rifle Heavy Assault Rifle Flak Cannon Signal Generator [Rating: 22] Favorites ----------- Power Cooled Ion Engine Engine Cooled Ion Engine Propulsion Light Treads Treads Light Treads Leg Aluminum Leg Utility Large Storage Unit Device Long-range Tractor Beam Storage Large Storage Unit Protection Light Armor Plating Weapon Flak Cannon Energy Gun Field Laser Ballistic Gun Assault Rifle Ballistic Cannon Flak Cannon Build | -11 -10 -10 -9 -9 -9 -8 ------- Run | Scr Mat Min Mat Min Exi Min Slots Evolved 2 | . . . 2 . . . Power . | . . . . . . . Propulsion 1 | . . . 1 . . . Utility . | . . . . . . . Weapon 1 | . . . 1 . . . Parts Attached 43 | 6 . 3 14 . 4 16 Power 3 | 1 . 1 1 . . . Engine 3 | 1 . 1 1 . . . Core . | . . . . . . . Reactor . | . . . . . . . Propulsion 13 | 2 . 1 8 . . 2 Treads 11 | 2 . 1 6 . . 2 Leg 2 | . . . 2 . . . Wheel . | . . . . . . . Hover . | . . . . . . . Flight . | . . . . . . . Utility 7 | 1 . 1 1 . 2 2 Device 2 | . . . 1 . . 1 Storage 4 | 1 . 1 . . 2 . Processor . | . . . . . . . Hackware . | . . . . . . . Protection 1 | . . . . . . 1 Artifact . | . . . . . . . Weapon 20 | 2 . . 4 . 2 12 Energy Gun 9 | . . . 1 . 1 7 Energy Cannon . | . . . . . . . Ballistic Gun 4 | 2 . . . . . 2 Ballistic Cannon 7 | . . . 3 . 1 3 Launcher . | . . . . . . . Special Weapon . | . . . . . . . Impact Weapon . | . . . . . . . Slashing Weapon . | . . . . . . . Piercing Weapon . | . . . . . . . Special Melee Weapon . | . . . . . . . Unidentified Prototypes 2 | . . . 1 . . 1 Parts Lost 22 | . . 2 3 . . 17 Power 2 | . . 1 . . . 1 Propulsion 9 | . . 1 3 . . 5 Utility 2 | . . . . . . 2 Weapon 9 | . . . . . . 9 Highest Loss Streak 16 | . . 1 2 . . 16 To Critical Strikes . | . . . . . . . Average Slot Usage (%) 92 | . 85 84 93 100 100 82 Engine 11 | . 14 13 11 11 11 8 Treads 29 | . 28 27 24 33 33 28 Device 7 | . . . 10 11 11 2 Storage 11 | . 14 14 11 11 11 11 Energy Gun 2 | . . . . . 1 27 Ballistic Gun 8 | . 28 28 1 . . 2 Ballistic Cannon 20 | . . . 31 33 31 1 Naked Turns . | . . . . . . . Heaviest Build 67 | 13 13 28 47 47 67 38 Greatest Support 60 | 40 40 40 60 60 60 60 Greatest Overweight (x) 4 | . . . 4 . 1 . Average Overweight (x) . | . . . . . . . Largest Inventory Capacity 20 | 8 8 15 15 15 20 15 Average Capacity 13 | 6 8 9 15 15 15 15 Most Carried 15 | 2 2 5 15 15 15 14 Average Carried 9 | . 1 3 10 13 13 11 Final Capacity 15 | 8 8 15 15 15 15 15 Final Carried 15 | . 2 5 15 13 14 2 Class Distribution -------------------- 62% | Gunner 34% | Mutant 3% | Scavenger-Gunner Dominant Class ---------------- Mutant | -10/Materials Mutant | -10/Mines Gunner | -9/Materials Gunner | -9/Mines Gunner | -9/Exiles Gunner | -8/Mines Resources | -11 -10 -10 -9 -9 -9 -8 ----------- Run | Scr Mat Min Mat Min Exi Min Matter Collected 1320 | 260 . 196 709 109 4 42 Remotely 822 | . . . 709 109 4 . Salvage Created 948 | . . 189 616 97 4 42 Parts 60 | . . 13 34 6 . 7 Haulers Intercepted 1 | . . . 1 . . . Recyclers Shooed . | . . . . . . . Parts Field Recycled . | . . . . . . . Retrieved Matter . | . . . . . . . Parts Self-Destructed . | . . . . . . . Prevented . | . . . . . . . Kills | -11 -10 -10 -9 -9 -9 -8 ------- Run | Scr Mat Min Mat Min Exi Min Combat Hostiles Destroyed 32 | . . 8 18 2 1 3 Guns 11 | . . 8 . . . 3 Cannons 21 | . . . 18 2 1 . Classes Destroyed 10 | . . 2 6 1 1 . Worker 2 | . . . 2 . . . Builder 1 | . . . 1 . . . Tunneler 1 | . . . . 1 . . Hauler 1 | . . . 1 . . . Watcher 1 | . . . 1 . . . Swarmer 9 | . . 6 . . . 3 Grunt 14 | . . 2 10 2 . . Brawler 2 | . . . 2 . . . Sentry 6 | . . . 6 . . . Assembled 1 | . . . . . 1 . Thug 1 | . . . . 1 . . Best Kill Streak 8 | . . 3 8 2 1 3 Combat Bots Only 5 | . . 3 5 2 1 3 Max Kills in Single Turn 2 | . . 1 2 1 1 2 Gunslinging 1 | . . . . . . 1 Exploded . | . . . . . . . Melee . | . . . . . . . Uniques/NPCs Destroyed . | . . . . . . . Combat | -11 -10 -10 -9 -9 -9 -8 -------- Run | Scr Mat Min Mat Min Exi Min Damage Taken 3394 | . 42 627 565 57 172 1931 Core 534 | . 14 105 26 . 30 359 Absorbed by Shields . | . . . . . . . Core Remaining (%) 76 | 100 . 52 . . . . Volleys Fired 105 | . 1 47 32 7 7 11 Largest 3 | . 2 2 3 3 3 3 Hottest 189 | . 40 40 132 132 132 189 Shots Fired 258 | . 2 94 96 21 15 30 Gun 121 | . 2 94 . . 2 23 Cannon 137 | . . . 96 21 13 7 Launcher . | . . . . . . . Special . | . . . . . . . Kinetic 240 | . 2 94 96 21 13 14 Thermal 18 | . . . . . 2 16 Explosive . | . . . . . . . Electromagnetic . | . . . . . . . Robot Hit Streak 12 | . . 10 12 5 2 5 Robot Miss Streak 13 | . 2 4 13 7 12 3 Penetration Max . | . . . . . . . Secondary Targets 4 | . . 3 . . . 1 Max Gunslinging Chain 1 | . . 1 . . . 1 Shots Hit Robots 189 | . . 57 86 18 7 21 Core Hits 123 | . . 18 75 15 8 7 Critical Kills . | . . . . . . . Critical Parts Destroyed . | . . . . . . . Critical Strikes 1 | . . . . . . 1 Burn 1 | . . . . . . 1 Melee Attacks . | . . . . . . . Impact . | . . . . . . . Slashing . | . . . . . . . Piercing . | . . . . . . . Sneak Attacks . | . . . . . . . Combat Hostiles . | . . . . . . . Follow-up Attacks . | . . . . . . . Damage Inflicted 2701 | . . 618 1330 273 91 389 Guns 817 | . . 613 . . . 204 Cannons 1861 | . . . 1323 263 91 184 Explosions . | . . . . . . . Melee . | . . . . . . . Ramming 23 | . . 5 7 10 . 1 Kinetic 2550 | . . 613 1323 263 91 260 Thermal 128 | . . . . . . 128 Explosive . | . . . . . . . Electromagnetic . | . . . . . . . Impact . | . . . . . . . Slashing . | . . . . . . . Piercing . | . . . . . . . Highest Corruption 12 | . . . . . . 12 Average Corruption 7 | . . . . . . 7 Corruption Purged . | . . . . . . . Corruption Blocked . | . . . . . . . Effects 1 | . . . . . . 1 Message Errors 1 | . . . . . . 1 Overload Shots . | . . . . . . . Overflow Damage . | . . . . . . . Projectiles . | . . . . . . . Explosions . | . . . . . . . Melee . | . . . . . . . Knockbacks 25 | . . . 13 8 4 . Impact . | . . . . . . . Kinetic 24 | . . . 13 8 3 . Secondary 1 | . . . . . 1 . Self-Inflicted Damage 43 | . 43 . . . . . Shots 1 | . 1 . . . . . Rammed 5 | . . 2 1 1 . 1 Targets Rammed 5 | . . 2 1 1 . 1 Kicked . | . . . . . . . Crushed . | . . . . . . . Highest Temperature 357 | . . 46 357 293 211 315 Average Temperature 101 | . . 20 113 134 73 89 Received Heat Transfer 582 | . . 177 312 33 60 . Effects 1 | . . . 1 . . . Shutdowns 1 | . . . 1 . . . Siege Activations . | . . . . . . . Robots Corrupted . | . . . . . . . Combat Hostiles . | . . . . . . . Parts Fried . | . . . . . . . Impact Corruptions . | . . . . . . . Robots Melted . | . . . . . . . Combat Hostiles . | . . . . . . . Parts Melted . | . . . . . . . Heat Transferred 239 | . . . . . . 239 Parts Sabotaged . | . . . . . . . Parts Stolen . | . . . . . . . Parts Stripped . | . . . . . . . Power Chain Reactions . | . . . . . . . Missiles Intercepted . | . . . . . . . Alert | -11 -10 -10 -9 -9 -9 -8 ------- Run | Scr Mat Min Mat Min Exi Min Peak Influence 395 | . 27 135 395 202 . 75 Initial 147 | . . 10 23 147 . . Average 121 | . 11 55 204 197 . 48 Maximum Alert Level 1 | . . . 1 1 . . Low Security (%) 70 | 100 100 100 39 41 . 100 Level 1 29 | . . . 60 58 . . Level 2 . | . . . . . . . Level 3 . | . . . . . . . Level 4 . | . . . . . . . Level 5 . | . . . . . . . High Security . | . . . . . . . Max Security . | . . . . . . . Squads Dispatched 3 | . . . 2 . . 1 Investigation . | . . . . . . . Extermination . | . . . . . . . Reinforcement 2 | . . . 2 . . . Assault 1 | . . . . . . 1 Garrison . | . . . . . . . Intercept . | . . . . . . . Searches Triggered . | . . . . . . . Construction Impeded . | . . . . . . . Haulers Reinforced . | . . . . . . . Active Scanning Responses . | . . . . . . . Cargo Convoy Interrupts . | . . . . . . . Stealth | -11 -10 -10 -9 -9 -9 -8 --------- Run | Scr Mat Min Mat Min Exi Min Distress Signals 5 | . 1 1 3 . . . Communications Jammed . | . . . . . . . Distress Signals . | . . . . . . . Times Spotted 48 | . 3 8 24 2 7 4 Peak Tracking Total 9 | . 4 3 6 2 9 4 Tactical Retreats . | . . . . . . . Traps | -11 -10 -10 -9 -9 -9 -8 ------- Run | Scr Mat Min Mat Min Exi Min Traps Triggered . | . . . . . . . Indirectly . | . . . . . . . Trap Hack Attempts . | . . . . . . . Triggered . | . . . . . . . Disarmed . | . . . . . . . Reprogrammed . | . . . . . . . Reused . | . . . . . . . Traps Extracted . | . . . . . . . Installed . | . . . . . . . Triggered . | . . . . . . . Machines | -11 -10 -10 -9 -9 -9 -8 ---------- Run | Scr Mat Min Mat Min Exi Min Machines Disabled 3 | . 1 . . . 2 . Max in Single Turn 1 | . 1 . . . 1 . Machines Sabotaged . | . . . . . . . Garrisons Compromised . | . . . . . . . Overloaded Fab Kills . | . . . . . . . Hacking | -11 -10 -10 -9 -9 -9 -8 --------- Run | Scr Mat Min Mat Min Exi Min Machines Accessed 4 | . 1 . 1 . 2 . Terminals 2 | . 1 . 1 . . . Fabricators . | . . . . . . . Repair Stations . | . . . . . . . Recycling Units . | . . . . . . . Scanalyzers . | . . . . . . . Garrison Access . | . . . . . . . Total Hacks 9 | . 4 . 3 . 2 . Successful 5 | . 2 . 1 . 2 . Failed 3 | . 1 . 2 . . . Catastrophic 1 | . 1 . . . . . Database Lockouts 1 | . 1 . . . . . Manual 8 | . 4 . 3 . 1 . Terminals 7 | . 4 . 3 . . . Fabricators . | . . . . . . . Repair Stations . | . . . . . . . Recycling Units . | . . . . . . . Scanalyzers . | . . . . . . . Garrison Access . | . . . . . . . Terminal Hacks 4 | . 2 . . . 2 . Record 1 | . . . . . 1 . Robot Analysis 2 | . 2 . . . . . EX-Prototype ID Bank 1 | . . . . . 1 . Fabricator Hacks . | . . . . . . . Repair Station Hacks . | . . . . . . . Recycling Unit Hacks . | . . . . . . . Scanalyzer . | . . . . . . . Garrison Access Hacks . | . . . . . . . Unauthorized Hacks 1 | . . . 1 . . . Terminals 1 | . . . 1 . . . Botnet 1 | . . . 1 . . . Fabricators . | . . . . . . . Repair Stations . | . . . . . . . Recycling Units . | . . . . . . . Scanalyzers . | . . . . . . . Garrison Access . | . . . . . . . Data Cores Recovered . | . . . . . . . Used . | . . . . . . . Hacking Detections 2 | . 1 . 1 . . . Full Trace Events 1 | . 1 . . . . . Feedback Events . | . . . . . . . Feedback Blocked . | . . . . . . . Robot Schematics Acquired . | . . . . . . . Robots Built . | . . . . . . . Authchips . | . . . . . . . Time . | . . . . . . . Total Robot Build Rating . | . . . . . . . Part Schematics Acquired . | . . . . . . . Parts Built . | . . . . . . . Authchips . | . . . . . . . Time . | . . . . . . . Total Part Build Rating . | . . . . . . . Parts Repaired . | . . . . . . . Time . | . . . . . . . Parts Recycled . | . . . . . . . Recycled Matter . | . . . . . . . Retrieved Matter . | . . . . . . . Retrieved Components . | . . . . . . . Parts Scanalyzed . | . . . . . . . Part Schematics Acquired . | . . . . . . . Parts Damaged . | . . . . . . . Bothacking | -11 -10 -10 -9 -9 -9 -8 ------------ Run | Scr Mat Min Mat Min Exi Min Used RIF Installer . | . . . . . . . Robots Hacked . | . . . . . . . Non-combat . | . . . . . . . Combat . | . . . . . . . Robot Hacks Applied . | . . . . . . . Relay Couplers Released . | . . . . . . . Fabnet Peak Effective % . | . . . . . . . Robots Rewired . | . . . . . . . Allies Hacked . | . . . . . . . Hacks Repelled . | . . . . . . . Allies | -11 -10 -10 -9 -9 -9 -8 -------- Run | Scr Mat Min Mat Min Exi Min Total Allies . | . . . . . . . Largest Group . | . . . . . . . Highest-Rated Group . | . . . . . . . Highest-Rated Ally . | . . . . . . . Total Orders . | . . . . . . . Ally Attacks . | . . . . . . . Total Damage . | . . . . . . . Kills . | . . . . . . . Allies Corrupted . | . . . . . . . Allies Melted . | . . . . . . . Intel | -11 -10 -10 -9 -9 -9 -8 ------- Run | Scr Mat Min Mat Min Exi Min Robot Analysis Total 2 | . 2 . . . . . Derelict Logs Recovered 2 | . . 1 . 1 . . Drone Launches . | . . . . . . . Drone Recoveries . | . . . . . . . Exploration | -11 -10 -10 -9 -9 -9 -8 ------------- Run | Scr Mat Min Mat Min Exi Min Turns Passed 2323 | 61 85 549 585 251 604 188 Spaces Moved 1095 | 39 51 253 234 140 339 39 Core 11 | 11 . . . . . . Treads 1058 | 28 51 253 208 140 339 39 Legs 26 | . . . 26 . . . Wheels . | . . . . . . . Hover . | . . . . . . . Flight . | . . . . . . . Fastest Speed 50 | 50 160 160 160 160 160 160 Average Speed 168 | 128 160 160 191 160 170 160 Slowest Speed 400 | 160 160 160 400 160 240 160 Overloaded Moves . | . . . . . . . Propulsion Burnouts . | . . . . . . . Robots Hopped . | . . . . . . . Cave-ins Triggered . | . . . . . . . Exploration Rate (%) 30 | 3 20 56 29 30 70 5 Regions Visited 6 Branch Regions 4 Pre-discovered Areas 3 | . . 2 . . 1 . Known Exits Taken . | . . . . . . . Unknown Exits Taken 6 | 1 1 1 1 1 1 . Scrap Searched 2 | . . 1 . 1 . . Spaces Dug . | . . . . . . . Terrain Destroyed . | . . . . . . . Melee . | . . . . . . . Projectile . | . . . . . . . AOE . | . . . . . . . Terrain Rammed . | . . . . . . . Walls Destroyed . | . . . . . . . Machines Disabled . | . . . . . . . Actions | -11 -10 -10 -9 -9 -9 -8 --------- Run | Scr Mat Min Mat Min Exi Min Total 1353 | 50 53 311 295 153 353 138 Wait 72 | . . 2 . . . 70 Move 1089 | 38 50 252 233 139 338 39 Hop . | . . . . . . . Pick Up 25 | 6 2 4 9 2 2 . Fast Attach 13 | . . 2 11 . . . Attach 19 | 6 . 1 1 . . 11 Detach . | . . . . . . . Swap 11 | . . . 2 . 4 5 Drop 14 | . . 1 6 4 2 1 Fire 105 | . 1 47 32 7 7 11 Melee . | . . . . . . . Ram . | . . . . . . . Kick . | . . . . . . . Crush 5 | . . 2 1 1 . 1 Escape Stasis . | . . . . . . . Rewire . | . . . . . . . Trap . | . . . . . . . Miscellaneous . | . . . . . . . Route ------- -11/Scrapyard -10/Materials -10/Mines (discovered 2 exits: *Mat x2) -9/Materials (discovered 2 exits: [*Mat] / [*Min]) -9/Mines -9/Exiles -8/Mines (discovered 1 exit: [*Mat]) History --------- Turn | Location | Event 2 | -11/Scrapyard | Discovered new exit (range 16) 62 | -11/Scrapyard | Entered Materials 82 | -10/Materials | Central database locked down 124 | -10/Materials | Discovered new exit (range 8) 147 | -10/Materials | Entered Mines 187 | -10/Mines | Discovered new exit (range 8) 243 | -10/Mines | Learned location of Storage (-8) 310 | -10/Mines | Build established: Mutant 432 | -10/Mines | Learned location of Zion (-6) 535 | -10/Mines | Discovered new exit (range 7) 696 | -10/Mines | Entered Materials 696 | -9/Materials | Evolved 2 slots: Propulsion x1, Weapon x1 1045 | -9/Materials | Discovered new exit (range 10) 1145 | -9/Materials | Discovered new exit (range 16) 1281 | -9/Materials | Entered Mines 1325 | -9/Mines | Learned Materials stockpile data 1328 | -9/Mines | Met a Derelict testing a Signal Generator 1338 | -9/Mines | Found Signal Generator 1359 | -9/Mines | Build established: Gunner 1526 | -9/Mines | Deemed a non-threat by the Exiles lab entrance 1526 | -9/Mines | Discovered new exit (range 5) 1532 | -9/Mines | Entered Exiles 1572 | -9/Exiles | Met 8R-AWN 1601 | -9/Exiles | Met EX-HEX 1672 | -9/Exiles | Met EX-DEC 1708 | -9/Exiles | Met EX-BIN 1731 | -9/Exiles | Aligned with FarCom system 1732 | -9/Exiles | Given EX-Vault access code 1769 | -9/Exiles | Opened EX-Vault 1808 | -9/Exiles | Warned to stay clear of 0b10 Research branches 2022 | -9/Exiles | Discovered new exit (range 14) 2090 | -9/Exiles | Attacked by the Exiles 2136 | -9/Exiles | Entered Mines 2152 | -8/Mines | Discovered new exit (range 3) 2257 | -8/Mines | NK-0LA came to Exiles' defense 2302 | -8/Mines | Core integrity fell below 50% 2317 | -8/Mines | System corruption reached 10% 2323 | -8/Mines | Core integrity fell below 20% 2324 | -8/Mines | Destroyed by NK-0LA with NK-0LA's Tesla Doomcannon Last Messages --------------- 02283_ Hvy. Assault Rifle destroyed. 02285_ Lgt. Treads destroyed. 02285_ R-06 Scavenger collects Corrupted Lgt. Ion Engine. 02286_ K-01 Serf collects debris. 02286_ Dropped Signal Generator. 02287_ Lgt. Treads destroyed. 02287_ Flak Cannon destroyed. 02289_ Cld. Ion Engine destroyed. 02290_ K-01 Serf collects debris. 02297_ Flak Cannon destroyed. 02299_ Signal Generator broadcasts a burst of procedurally generated transmissions. 02299_ ALERT: Intercepting significant anomalous signal. Dispatching assault force. 02299_ Flak Cannon destroyed. 02314_ Lgt. Treads destroyed. 02316_ Field Laser destroyed. 02317_ NUCBC89JVSLT>|S MMH84BXPZ>PHCLNUUXBYZSPO 02320_ Lgt. Treads destroyed. 02320_ Field Laser destroyed. Map ----- +----------------------------------------------------+ | ????????????????????????????????? | | ????????????????????????????????? | | ????????????????????????????????? | | ????????????????????????????????? | | ????????????????????????????????? | | ????????????????????????????????? | | ????????????????????????????????? | | ????????????????????????????????? | | ????????????????????????????????? | | ????????????????????????????????? | | ????????????????????????????????? | | ????????????????????????????????? | | ????????????????????????????????? | | ????????????????????????????????? | | ????????????????????????????????? | | ????????????????????????????????? | | ????????????????????????????????? | | ????????????????????????????????? | | ????????????????????????????????? | | ????????????????????????????????? | | ????????????????????????????????? | | ???????????#####????????????????? | | ???? ?##### ???????????????? | | ????? """ ???????????????? | | ?????? "" ??###??###?????? | | ??????????# ### ####@##????? | | ??????????# %% & ## ##???? | | ??????????# x #???? | | ??????????# ### #???? | | ??????????# < ??## ## ##???? | | ??????????# ????########????? | | ??????????# ????????????????? | | ??????????#####?????????????????? | | ????????????????????????????????? | | ????????????????????????????????? | | ????????????????????????????????? | | ????????????????????????????????? | | | | | | | | | | | | | | | | | | | | | | | | | | | +----------------------------------------------------+ Best States ------------- Heat Dissipation 42 Energy Generation 14 Energy Capacity 280 Matter Stores 300 Matter Capacity 300 Sight Range 16 Terrain Scan Density 10 Armor Coverage 150 Evasion (%) 40 Recoil Reduction 3 Item Schematics ----------------- None Robot Schematics ------------------ None Fabricated ------------ Nothing Alien Tech Used ----------------- None Achievements -------------- None Challenges ------------ None Game ------ Seed AuthchipDrainedMediator Manual? 0 Play Time 00:14:15 Cumulative 558.7 hours Start 2022.03.18 @ 18:11:58 End 2022.03.18 @ 18:23:45 Sessions 1 Manual Loads 0 Difficulty Rogue Special Mode None Game No. 394 Rogue 387 Adventurer 0 Explorer 7 Win Type - Total 32 Types 9/4/12/2/0/1/2/1/1 Lore% 81 Gallery% 89 Achievement% 81 Wizard Run 0 Options --------- ASCII 0 Keyboard 0 Movement Mouse Keybinds 0 Fullscreen 1 Font 18/X11Bold Map View 76x50 Tactical HUD 1 Map Filters NONE Filters NONE Steam 1 RUN: dd93f82b-a710-4bf3-9ea4-0910dedb5890